[Event "Nino Khurtsidze Memorial 2019"]
[Site "Vani"]
[Date "2019.09.18"]
[Round "8.4"]
[White "Dzagnidze, Nana"]
[Black "Arabidze, Meri"]
[Result "0-1"]
[ECO "A13"]
[WhiteElo "2502"]
[BlackElo "2398"]
[Annotator "ChessBase"]
[PlyCount "178"]
[EventDate "2019.09.17"]
[EventType "tourn"]
[EventCountry "GEO"]
[SourceTitle "playchess.com"]
[Source "ChessBase"]
[SourceQuality "1"]
[TimeControl "900+10"]

1. c4 {[%emt 0:00:00]} e6 {[%emt 0:00:00]} 2. Nf3 {[%emt 0:00:06]} d5 {[%emt 0:00:00]} 3. e3 {[%emt 0:00:05]} Nf6 {[%emt 0:00:00]} 4. Nc3 {[%emt 0:00:10]} c5 {[%emt 0:00:17]} 5. cxd5 {[%emt 0:00:28]} exd5 {[%emt 0:00:02]} 6. d4 {[%emt 0:00:03]} Nc6 {[%emt 0:00:02]} 7. Bb5 {[%emt 0:00:17]} cxd4 {[%emt 0:01:58]} 8. exd4 {[%emt 0:01:57]} Bd6 {[%emt 0:00:46]} 9. O-O {[%emt 0:01:02]} O-O {[%emt 0:00:30]} 10. Bg5 {[%emt 0:00:31]} h6 {[%emt 0:02:25]} 11. Bxf6 {[%emt 0:01:24]} Qxf6 {[%emt 0:00:02]} 12. Nxd5 {[%emt 0:00:12]} Qf5 {[%emt 0:00:51]} 13. Bxc6 {[%emt 0:01:54]} bxc6 {[%emt 0:00:01]} 14. Ne3 {[%emt 0:00:01]} Qf4 {[%emt 0:01:38]} 15. Qc1 {[%emt 0:00:46]} Ba6 {[%emt 0:01:12]} 16. Nc4 {[%emt 0:00:05]} Rfe8 {[%emt 0:04:19]} 17. Nxd6 {[%emt 0:01:43]} Qxd6 {[%emt 0:00:01]} 18. Re1 {[%emt 0:00:02]} Be2 {[%emt 0:00:13]} 19. Ne5 {[%emt 0:02:32]} Qxd4 {[%emt 0:00:02]} 20. Nxc6 {[%emt 0:00:23]} Qd6 {[%emt 0:01:04]} 21. Qc3 {[%emt 0:00:34]} Rac8 {[%emt 0:00:44]} 22. Rac1 {[%emt 0:00:09]} Kh8 {[%emt 0:00:42]} 23. Qc2 {[%emt 0:02:19]} Bd3 {[%emt 0:01:28]} 24. Rxe8+ {[%emt 0:00:18]} Rxe8 {[%emt 0:00:01]} 25. Qd1 {[%emt 0:00:24]} Qg6 {[%emt 0:00:21]} 26. Nd4 {[%emt 0:00:56]} Be4 {[%emt 0:00:16]} 27. f3 {[%emt 0:00:47]} Bb7 {[%emt 0:00:02]} 28. Qb3 {[%emt 0:00:09]} Qg5 {[%emt 0:00:13]} 29. Rd1 {[%emt 0:00:09]} Bd5 {[%emt 0:00:06]} 30. Qc3 {[%emt 0:00:11]} Kg8 {[%emt 0:00:32]} 31. b3 {[%emt 0:00:07]} h5 {[%emt 0:00:07]} 32. Qd2 {[%emt 0:00:14]} Qe5 {[%emt 0:00:08]} 33. Nc2 {[%emt 0:00:06]} Be6 {[%emt 0:00:11]} 34. Qd4 {[%emt 0:00:16]} Qa5 {[%emt 0:00:00]} 35. Qb2 {[%emt 0:00:13]} h4 {[%emt 0:00:09]} 36. Nd4 {[%emt 0:00:03]} h3 {[%emt 0:00:19]} 37. Nxe6 {[%emt 0:00:05]} Rxe6 {[%emt 0:00:01]} 38. gxh3 {[%emt 0:00:17]} Rg6+ {[%emt 0:00:14]} 39. Kh1 {[%emt 0:00:06]} Qf5 {[%emt 0:00:04]} 40. Qf2 {[%emt 0:00:09]} Qxh3 {[%emt 0:00:16]} 41. Rd8+ {[%emt 0:00:07]} Kh7 {[%emt 0:00:00]} 42. Rd4 {[%emt 0:00:04]} Qc8 {[%emt 0:00:31]} 43. Qh4+ {[%emt 0:00:19]} Rh6 {[%emt 0:00:00]} 44. Qe4+ {[%emt 0:00:00]} f5 {[%emt 0:00:11]} 45. Qf4 {[%emt 0:00:23]} Qc2 {[%emt 0:00:07]} 46. Qd2 {[%emt 0:00:18]} Qb1+ {[%emt 0:00:07]} 47. Qd1 {[%emt 0:00:06]} Qxa2 {[%emt 0:00:04]} 48. Rd2 {[%emt 0:00:01]} Qa6 {[%emt 0:00:11]} 49. Qb1 {[%emt 0:00:05]} Qb5 {[%emt 0:00:12]} 50. Qd3 {[%emt 0:00:07]} Qe5 {[%emt 0:00:14]} 51. Qb1 {[%emt 0:00:14]} Qf4 {[%emt 0:00:15]} 52. Qd3 {[%emt 0:00:20]} Qe5 {[%emt 0:00:14]} 53. Qb1 {[%emt 0:00:17]} a6 {[%emt 0:00:02]} 54. Qf1 {[%emt 0:00:10]} Qe3 {[%emt 0:00:14]} 55. Rd3 {[%emt 0:00:07]} Qf4 {[%emt 0:00:02]} 56. Qe2 {[%emt 0:00:01]} Rg6 {[%emt 0:00:12]} 57. Qf1 {[%emt 0:00:19]} Rc6 {[%emt 0:00:16]} 58. Qe2 {[%emt 0:00:15]} Rc1+ {[%emt 0:00:18]} 59. Rd1 {[%emt 0:00:01]} Rc3 {[%emt 0:00:06]} 60. Rd3 {[%emt 0:00:08]} Qc1+ {[%emt 0:00:11]} 61. Rd1 {[%emt 0:00:03]} Qe3 {[%emt 0:00:08]} 62. Qxe3 {[%emt 0:00:09]} Rxe3 {[%emt 0:00:01]} 63. b4 {[%emt 0:00:12]} Rxf3 {[%emt 0:00:06]} 64. Ra1 {[%emt 0:00:02]} Rb3 {[%emt 0:00:04]} 65. Rxa6 {[%emt 0:00:02]} Rxb4 {[%emt 0:00:01]} 66. Kg2 {[%emt 0:00:03]} Rb3 {[%emt 0:00:13]} 67. Rc6 {[%emt 0:00:13]} g6 {[%emt 0:00:02]} 68. Rf6 {[%emt 0:00:09]} Kg7 {[%emt 0:00:02]} 69. Ra6 {[%emt 0:00:02]} Kh6 {[%emt 0:00:01]} 70. Rc6 {[%emt 0:00:09]} Kh5 {[%emt 0:00:01]} 71. Rf6 {[%emt 0:00:48]} Kg5 {[%emt 0:00:07]} 72. Rc6 {[%emt 0:00:05]} Ra3 {[%emt 0:00:05]} 73. Rb6 {[%emt 0:00:09]} Ra2+ {[%emt 0:00:05]} 74. Kg3 {[%emt 0:00:15]} f4+ {[%emt 0:00:14]} 75. Kh3 {[%emt 0:00:17]} Ra3+ {[%emt 0:00:25]} 76. Kg2 {[%emt 0:00:02]} Kh5 {[%emt 0:00:24]} 77. Rb2 {[%emt 0:00:17]} g5 {[%emt 0:00:04]} 78. Rb8 {[%emt 0:00:12]} Kg4 {[%emt 0:00:16]} 79. Rb2 {[%emt 0:00:04]} Kh4 {[%emt 0:00:03]} 80. Rb4 {[%emt 0:00:09]} Ra2+ {[%emt 0:00:05]} 81. Kg1 {[%emt 0:00:04]} Kg4 {[%emt 0:00:30]} 82. Rb3 {[%emt 0:00:18]} Re2 {[%emt 0:00:02]} 83. Ra3 {[%emt 0:00:08]} Kh4 {[%emt 0:00:27]} 84. Ra4 {[%emt 0:00:07]} Kh3 {[%emt 0:00:06]} 85. Ra5 {[%emt 0:00:10]} Rg2+ {[%emt 0:00:08]} 86. Kf1 {[%emt 0:00:02]} Kxh2 {[%emt 0:00:08]} 87. Rf5 {[%emt 0:00:16]} Rg3 {[%emt 0:00:13]} 88. Kf2 {[%emt 0:00:05]} Kh3 {[%emt 0:00:04]} 89. Ra5 {[%emt 0:00:23]} Kg4 {[%emt 0:00:04]} 0-1

[Event "Nino Khurtsidze Memorial 2019"]
[Site "Vani"]
[Date "2019.09.18"]
[Round "8.5"]
[White "Melia, Salome"]
[Black "Zhukova, Natalia"]
[Result "1/2-1/2"]
[ECO "C08"]
[WhiteElo "2376"]
[BlackElo "2333"]
[Annotator "NA"]
[PlyCount "31"]
[EventDate "2019.09.17"]
[EventType "tourn"]
[EventCountry "GEO"]
[SourceTitle "playchess.com"]
[Source "ChessBase"]
[SourceQuality "1"]
[TimeControl "900+10"]

1. e4 {[%emt 0:00:00]} e6 {[%emt 0:00:00]} 2. d4 {[%emt 0:00:00]} d5 {[%emt 0:00:00]} 3. Nd2 {[%emt 0:00:06]} c5 {[%emt 0:00:03]} 4. exd5 {[%emt 0:00:08]} exd5 {[%emt 0:00:04]} 5. Bb5+ {[%emt 0:00:20]} Nc6 {[%emt 0:00:03]} 6. Ngf3 {[%emt 0:00:10]} Qe7+ {[%emt 0:00:06]} 7. Kf1 {[%emt 0:01:46]} Qc7 {[%emt 0:03:14]} 8. Qe2+ {[%emt 0:00:23]} Be7 {[%emt 0:00:08]} 9. dxc5 {[%emt 0:01:40]} Nf6 {[%emt 0:00:26]} 10. Nb3 {[%emt 0:01:53]} O-O {[%emt 0:00:17]} 11. h3 {[%emt 0:00:04]} Ne4 {[%emt 0:04:22]} 12. Be3 {[%emt 0:00:04]} Bf6 {[%emt 0:00:47]} 13. c3 {[%emt 0:00:10]} Ne7 {[%emt 0:00:02]} 14. g3 {[%emt 0:03:49]} Nf5 {[%emt 0:03:47]} 15. Bf4 {[%emt 0:00:09]} Qe7 {[%emt 0:02:36]} 16. Kg2 {[%emt 0:02:13]} 1/2-1/2

[Event "Nino Khurtsidze Memorial 2019"]
[Site "Vani"]
[Date "2019.09.18"]
[Round "9.1"]
[White "Zhukova, Natalia"]
[Black "Mamedjarova, Zeinab"]
[Result "1-0"]
[ECO "D26"]
[WhiteElo "2333"]
[BlackElo "2300"]
[Annotator "NA"]
[PlyCount "143"]
[EventDate "2019.09.17"]
[EventType "tourn"]
[EventCountry "GEO"]
[SourceTitle "playchess.com"]
[Source "ChessBase"]
[SourceQuality "1"]
[TimeControl "900+10"]

1. c4 {[%emt 0:00:00]} e6 {[%emt 0:00:00]} 2. Nf3 {[%emt 0:00:22]} d5 {[%emt 0:00:00]} 3. e3 {[%emt 0:00:02]} c5 {[%emt 0:00:13]} 4. d4 {[%emt 0:00:25]} dxc4 {[%emt 0:00:05]} 5. Bxc4 {[%emt 0:00:05]} Nf6 {[%emt 0:00:04]} 6. O-O {[%emt 0:00:09]} Nc6 {[%emt 0:00:02]} 7. Qe2 {[%emt 0:00:42]} a6 {[%emt 0:00:05]} 8. Rd1 {[%emt 0:00:32]} Qc7 {[%emt 0:00:02]} 9. a3 {[%emt 0:00:55]} b5 {[%emt 0:00:10]} 10. Ba2 {[%emt 0:00:03]} Bb7 {[%emt 0:00:01]} 11. Nbd2 {[%emt 0:03:29]} Rd8 {[%emt 0:01:07]} 12. dxc5 {[%emt 0:02:13]} Bxc5 {[%emt 0:00:03]} 13. b4 {[%emt 0:00:02]} Ba7 {[%emt 0:02:43]} 14. Bb2 {[%emt 0:00:03]} O-O {[%emt 0:00:02]} 15. Rac1 {[%emt 0:00:37]} Qe7 {[%emt 0:00:11]} 16. Bb1 {[%emt 0:01:03]} h6 {[%emt 0:00:24]} 17. Nb3 {[%emt 0:00:38]} Rxd1+ {[%emt 0:06:46]} 18. Qxd1 {[%emt 0:00:01]} Rd8 {[%emt 0:02:19]} 19. Qe2 {[%emt 0:00:02]} Nb8 {[%emt 0:00:31]} 20. Ne5 {[%emt 0:02:03]} Bb6 {[%emt 0:01:11]} 21. Nc5 {[%emt 0:01:03]} Bxc5 {[%emt 0:00:13]} 22. bxc5 {[%emt 0:00:02]} Nc6 {[%emt 0:00:07]} 23. Nxc6 {[%emt 0:03:02]} Bxc6 {[%emt 0:00:02]} 24. Be5 {[%emt 0:00:01]} Ne4 {[%emt 0:02:07]} 25. Bxe4 {[%emt 0:01:18]} Bxe4 {[%emt 0:00:01]} 26. Bd6 {[%emt 0:00:14]} Qg5 {[%emt 0:00:06]} 27. f3 {[%emt 0:00:03]} Bc6 {[%emt 0:00:06]} 28. Rd1 {[%emt 0:00:17]} Rd7 {[%emt 0:00:16]} 29. e4 {[%emt 0:00:03]} Qd8 {[%emt 0:00:25]} 30. Rc1 {[%emt 0:00:14]} Qa5 {[%emt 0:00:08]} 31. Qe3 {[%emt 0:00:04]} Kh7 {[%emt 0:00:04]} 32. h4 {[%emt 0:00:03]} b4 {[%emt 0:00:07]} 33. axb4 {[%emt 0:00:27]} Qxb4 {[%emt 0:00:03]} 34. Qd3 {[%emt 0:00:11]} Bb5 {[%emt 0:00:07]} 35. Qc2 {[%emt 0:00:04]} a5 {[%emt 0:00:46]} 36. e5+ {[%emt 0:00:13]} Kg8 {[%emt 0:00:01]} 37. c6 {[%emt 0:00:05]} Qd4+ {[%emt 0:00:02]} 38. Qf2 {[%emt 0:00:10]} Qf4 {[%emt 0:00:17]} 39. Rc5 {[%emt 0:00:12]} Bxc6 {[%emt 0:00:18]} 40. Rxc6 {[%emt 0:00:01]} Rb7 {[%emt 0:00:04]} 41. g3 {[%emt 0:00:22]} Rb1+ {[%emt 0:00:04]} 42. Kg2 {[%emt 0:00:01]} Qf5 {[%emt 0:00:24]} 43. Rc8+ {[%emt 0:00:13]} Kh7 {[%emt 0:00:01]} 44. Qc2 {[%emt 0:00:03]} Qxc2+ 45. Rxc2 {[%emt 0:00:02]} Ra1 {[%emt 0:00:19]} 46. Rc7 {[%emt 0:00:08]} Kg6 {[%emt 0:00:03]} 47. h5+ {[%emt 0:00:14]} Kxh5 {[%emt 0:00:03]} 48. Rxf7 {[%emt 0:00:02]} Kg6 {[%emt 0:00:05]} 49. Re7 {[%emt 0:00:06]} a4 {[%emt 0:00:03]} 50. Ra7 {[%emt 0:00:33]} h5 {[%emt 0:00:01]} 51. Kf2 {[%emt 0:00:15]} Kf5 {[%emt 0:00:08]} 52. Ke3 {[%emt 0:00:15]} g5 {[%emt 0:00:04]} 53. Kd3 {[%emt 0:00:12]} Rf1 {[%emt 0:00:24]} 54. Rf7+ {[%emt 0:00:10]} Kg6 {[%emt 0:00:01]} 55. Rf6+ {[%emt 0:00:01]} Kg7 {[%emt 0:00:01]} 56. Ke2 {[%emt 0:00:19]} Ra1 {[%emt 0:00:17]} 57. Rxe6 {[%emt 0:00:04]} a3 {[%emt 0:00:01]} 58. Re7+ {[%emt 0:00:04]} Kg6 {[%emt 0:00:01]} 59. Re6+ {[%emt 0:00:17]} Kf7 {[%emt 0:00:11]} 60. Rf6+ {[%emt 0:00:04]} Kg7 {[%emt 0:00:04]} 61. Bf8+ {[%emt 0:00:02]} Kg8 {[%emt 0:00:06]} 62. Bxa3 {[%emt 0:00:04]} Ra2+ {[%emt 0:00:02]} 63. Ke3 {[%emt 0:00:25]} Rxa3+ {[%emt 0:00:02]} 64. Ke4 {[%emt 0:00:01]} Kg7 {[%emt 0:00:05]} 65. Rb6 {[%emt 0:00:22]} h4 {[%emt 0:00:02]} 66. gxh4 {[%emt 0:00:05]} gxh4 {[%emt 0:00:00]} 67. f4 {[%emt 0:00:14]} h3 {[%emt 0:00:01]} 68. Rb2 {[%emt 0:00:13]} Rg3 {[%emt 0:00:01]} 69. Rh2 {[%emt 0:00:04]} Kg6 {[%emt 0:00:03]} 70. Rh1 {[%emt 0:00:20]} Kh5 {[%emt 0:00:37]} 71. Kf5 {[%emt 0:00:02]} Rg8 {[%emt 0:00:08]} 72. Rxh3# {[%emt 0:00:02]} 1-0

[Event "Nino Khurtsidze Memorial 2019"]
[Site "Vani"]
[Date "2019.09.18"]
[Round "9.2"]
[White "Arabidze, Meri"]
[Black "Melia, Salome"]
[Result "0-1"]
[ECO "A06"]
[WhiteElo "2398"]
[BlackElo "2376"]
[Annotator "NA"]
[PlyCount "60"]
[EventDate "2019.09.17"]
[EventType "tourn"]
[EventCountry "GEO"]
[SourceTitle "playchess.com"]
[Source "ChessBase"]
[SourceQuality "1"]
[TimeControl "900+10"]

1. Nf3 {[%emt 0:00:00]} d5 {[%emt 0:00:00]} 2. e3 {[%emt 0:00:00]} g6 {[%emt 0:00:07]} 3. c4 {[%emt 0:00:10]} e6 {[%emt 0:00:35]} 4. d4 {[%emt 0:00:19]} Bg7 {[%emt 0:00:03]} 5. Be2 {[%emt 0:00:43]} Ne7 {[%emt 0:00:11]} 6. Nc3 {[%emt 0:00:14]} O-O {[%emt 0:00:06]} 7. O-O {[%emt 0:00:05]} b6 {[%emt 0:00:57]} 8. cxd5 {[%emt 0:00:22]} exd5 {[%emt 0:00:04]} 9. b3 {[%emt 0:00:05]} c6 {[%emt 0:04:09]} 10. Ba3 {[%emt 0:00:20]} Re8 {[%emt 0:00:12]} 11. Rc1 {[%emt 0:00:10]} Nf5 {[%emt 0:03:01]} 12. Bd3 {[%emt 0:03:52]} Nd6 {[%emt 0:00:18]} 13. Qc2 {[%emt 0:00:02]} Bf5 {[%emt 0:01:16]} 14. Bxf5 {[%emt 0:00:49]} Nxf5 {[%emt 0:00:01]} 15. Rfd1 {[%emt 0:00:12]} Nd7 {[%emt 0:02:26]} 16. e4 {[%emt 0:00:12]} dxe4 {[%emt 0:00:01]} 17. Nxe4 {[%emt 0:00:01]} Nf6 {[%emt 0:00:13]} 18. Nxf6+ {[%emt 0:01:24]} Qxf6 {[%emt 0:00:02]} 19. Qxc6 {[%emt 0:01:38]} Qxc6 {[%emt 0:00:16]} 20. Rxc6 {[%emt 0:00:02]} Nxd4 {[%emt 0:00:12]} 21. Nxd4 {[%emt 0:00:14]} Bxd4 {[%emt 0:00:02]} 22. Kf1 {[%emt 0:00:27]} Rad8 {[%emt 0:00:44]} 23. Rc7 {[%emt 0:03:01]} b5 {[%emt 0:02:17]} 24. Be7 {[%emt 0:00:35]} Rd5 {[%emt 0:00:02]} 25. Bf6 {[%emt 0:00:17]} Bc3 {[%emt 0:00:14]} 26. Rc1 {[%emt 0:02:25]} Bxf6 {[%emt 0:00:04]} 27. Rxa7 {[%emt 0:00:02]} Rd2 {[%emt 0:00:33]} 28. Re1 {[%emt 0:00:01]} Rxe1+ {[%emt 0:01:12]} 29. Kxe1 {[%emt 0:00:01]} Bc3 {[%emt 0:00:02]} 30. Rc7 {[%emt 0:00:37]} b4 {[%emt 0:00:05]} 0-1

[Event "Nino Khurtsidze Memorial 2019"]
[Site "Vani"]
[Date "2019.09.18"]
[Round "9.3"]
[White "Batsiashvili, Nino"]
[Black "Dzagnidze, Nana"]
[Result "0-1"]
[ECO "A91"]
[WhiteElo "2415"]
[BlackElo "2502"]
[Annotator "ChessBase"]
[PlyCount "56"]
[EventDate "2019.09.17"]
[EventType "tourn"]
[EventCountry "GEO"]
[SourceTitle "playchess.com"]
[Source "ChessBase"]
[SourceQuality "1"]
[TimeControl "900+10"]

1. d4 {[%emt 0:00:00]} e6 {[%emt 0:00:00]} 2. c4 {[%emt 0:00:10]} f5 {[%emt 0:00:08]} 3. g3 {[%emt 0:00:26]} Nf6 {[%emt 0:00:03]} 4. Bg2 {[%emt 0:00:01]} Be7 {[%emt 0:00:08]} 5. Nc3 {[%emt 0:00:13]} O-O {[%emt 0:00:03]} 6. Nf3 {[%emt 0:00:13]} b6 {[%emt 0:01:21]} 7. Ne5 {[%emt 0:00:42]} c6 {[%emt 0:00:09]} 8. O-O {[%emt 0:00:46]} Bb7 {[%emt 0:00:11]} 9. e4 {[%emt 0:00:40]} d6 {[%emt 0:03:28]} 10. Nd3 {[%emt 0:00:03]} Nxe4 {[%emt 0:00:30]} 11. Nxe4 {[%emt 0:00:01]} fxe4 {[%emt 0:00:01]} 12. Bxe4 {[%emt 0:00:02]} d5 {[%emt 0:00:00]} 13. Bg2 {[%emt 0:00:12]} Bf6 {[%emt 0:01:54]} 14. Nf4 {[%emt 0:00:16]} Re8 {[%emt 0:00:02]} 15. Re1 {[%emt 0:00:14]} Qd6 {[%emt 0:00:09]} 16. Qg4 {[%emt 0:03:33]} Nd7 {[%emt 0:00:59]} 17. Nxe6 {[%emt 0:00:55]} Nf8 {[%emt 0:01:02]} 18. Bf4 {[%emt 0:00:05]} Qb4 {[%emt 0:04:40]} 19. cxd5 {[%emt 0:01:46]} cxd5 {[%emt 0:00:02]} 20. a3 {[%emt 0:01:34]} Qxb2 {[%emt 0:00:04]} 21. Nxg7 {[%emt 0:02:44]} Bxg7 {[%emt 0:00:30]} 22. Be5 {[%emt 0:00:01]} Re7 {[%emt 0:00:39]} 23. h4 {[%emt 0:02:24]} Qd2 {[%emt 0:00:44]} 24. Re3 {[%emt 0:00:25]} Ng6 {[%emt 0:00:16]} 25. Rae1 {[%emt 0:00:54]} Rf8 {[%emt 0:01:31]} 26. R1e2 {[%emt 0:00:36]} Qd1+ {[%emt 0:00:07]} 27. Kh2 {[%emt 0:00:18]} Nxe5 {[%emt 0:00:25]} 28. dxe5 {[%emt 0:00:14]} d4 {[%emt 0:00:11]} 0-1

[Event "Nino Khurtsidze Memorial 2019"]
[Site "Vani"]
[Date "2019.09.18"]
[Round "9.4"]
[White "Khotenashvili, Bela"]
[Black "Javakhishvili, Lela"]
[Result "1/2-1/2"]
[ECO "A45"]
[WhiteElo "2453"]
[BlackElo "2458"]
[Annotator "ChessBase"]
[PlyCount "141"]
[EventDate "2019.09.17"]
[EventType "tourn"]
[EventCountry "GEO"]
[SourceTitle "playchess.com"]
[Source "ChessBase"]
[SourceQuality "1"]
[TimeControl "900+10"]

1. d4 {[%emt 0:00:06]} Nf6 {[%emt 0:00:00]} 2. Bg5 {[%emt 0:00:04]} Ne4 {[%emt 0:00:10]} 3. Bf4 {[%emt 0:00:03]} d5 {[%emt 0:00:02]} 4. e3 {[%emt 0:01:13]} c5 {[%emt 0:00:11]} 5. Bd3 {[%emt 0:02:02]} cxd4 {[%emt 0:01:00]} 6. Bxe4 {[%emt 0:00:02]} dxe4 {[%emt 0:00:03]} 7. Qxd4 {[%emt 0:00:01]} Qxd4 {[%emt 0:00:32]} 8. exd4 {[%emt 0:00:01]} Nc6 {[%emt 0:00:32]} 9. Ne2 {[%emt 0:00:30]} Bg4 {[%emt 0:00:46]} 10. c3 {[%emt 0:00:20]} h6 {[%emt 0:02:46]} 11. d5 {[%emt 0:04:56]} e5 {[%emt 0:00:20]} 12. dxc6 {[%emt 0:00:22]} exf4 {[%emt 0:00:03]} 13. cxb7 {[%emt 0:00:01]} Rb8 {[%emt 0:00:21]} 14. Nxf4 {[%emt 0:00:15]} Rxb7 {[%emt 0:00:03]} 15. h3 {[%emt 0:01:21]} Bd7 {[%emt 0:00:25]} 16. b3 {[%emt 0:00:06]} g5 {[%emt 0:00:15]} 17. Nh5 {[%emt 0:01:10]} Be7 {[%emt 0:00:51]} 18. g4 {[%emt 0:00:31]} O-O {[%emt 0:00:46]} 19. Nd2 {[%emt 0:00:02]} f5 {[%emt 0:01:43]} 20. gxf5 {[%emt 0:00:50]} Bxf5 {[%emt 0:01:33]} 21. Ng3 {[%emt 0:00:17]} e3 {[%emt 0:00:17]} 22. fxe3 {[%emt 0:00:18]} Bd3 {[%emt 0:00:01]} 23. Nge4 {[%emt 0:01:39]} Rb6 {[%emt 0:00:10]} 24. Nf2 {[%emt 0:00:27]} Re6 {[%emt 0:01:06]} 25. Nxd3 {[%emt 0:00:03]} Rxe3+ {[%emt 0:00:02]} 26. Kd1 {[%emt 0:00:01]} Rxd3 {[%emt 0:00:01]} 27. Kc2 {[%emt 0:00:02]} Rg3 {[%emt 0:00:24]} 28. Rag1 {[%emt 0:00:17]} Rxg1 {[%emt 0:00:26]} 29. Rxg1 {[%emt 0:00:00]} Rf2 {[%emt 0:00:07]} 30. Kd3 {[%emt 0:00:16]} Kg7 {[%emt 0:00:12]} 31. Re1 {[%emt 0:01:08]} Bf6 {[%emt 0:00:16]} 32. a4 {[%emt 0:00:20]} Rh2 {[%emt 0:00:08]} 33. Re3 {[%emt 0:00:02]} Kg6 {[%emt 0:00:16]} 34. c4 {[%emt 0:00:07]} h5 {[%emt 0:00:06]} 35. c5 {[%emt 0:00:08]} Bd8 {[%emt 0:00:16]} 36. b4 {[%emt 0:00:32]} g4 {[%emt 0:00:09]} 37. hxg4 {[%emt 0:00:02]} hxg4 {[%emt 0:00:02]} 38. Re8 {[%emt 0:00:05]} Bc7 {[%emt 0:00:12]} 39. Ne4 {[%emt 0:00:26]} Rh3+ {[%emt 0:00:35]} 40. Kd4 {[%emt 0:00:08]} Rb3 {[%emt 0:00:14]} 41. b5 {[%emt 0:00:34]} Rb4+ {[%emt 0:00:08]} 42. Kd5 {[%emt 0:00:01]} Rxa4 {[%emt 0:00:02]} 43. Rg8+ {[%emt 0:00:13]} Kf5 {[%emt 0:00:21]} 44. Rf8+ {[%emt 0:00:01]} Kg6 {[%emt 0:00:07]} 45. Rg8+ {[%emt 0:00:45]} Kf5 {[%emt 0:00:01]} 46. Nd6+ {[%emt 0:00:02]} Kf4 {[%emt 0:00:10]} 47. Kc6 {[%emt 0:00:20]} Ba5 {[%emt 0:00:11]} 48. Rf8+ {[%emt 0:00:31]} Kg3 {[%emt 0:00:12]} 49. Rf7 {[%emt 0:00:08]} Be1 {[%emt 0:00:49]} 50. Nc8 {[%emt 0:00:04]} Kh2 {[%emt 0:00:11]} 51. Rh7+ {[%emt 0:00:03]} Kg1 {[%emt 0:00:15]} 52. Nxa7 {[%emt 0:00:07]} g3 {[%emt 0:00:05]} 53. b6 {[%emt 0:00:05]} g2 {[%emt 0:00:02]} 54. Rg7 {[%emt 0:00:02]} Kh2 {[%emt 0:00:16]} 55. b7 {[%emt 0:00:04]} Bg3 {[%emt 0:01:33]} 56. Rxg3 {[%emt 0:00:02]} Kxg3 {[%emt 0:00:03]} 57. b8=Q+ {[%emt 0:00:01]} Rf4 {[%emt 0:00:01]} 58. Qb3+ {[%emt 0:00:53]} Rf3 {[%emt 0:00:12]} 59. Qg8+ {[%emt 0:00:10]} Kh2 {[%emt 0:00:16]} 60. Qh8+ {[%emt 0:00:21]} Rh3 {[%emt 0:00:05]} 61. Qe5+ {[%emt 0:00:02]} Kh1 {[%emt 0:00:20]} 62. Qe6 {[%emt 0:00:14]} Kh2 {[%emt 0:00:07]} 63. Qe5+ {[%emt 0:00:03]} Kh1 {[%emt 0:00:02]} 64. Qe4 {[%emt 0:00:04]} Kh2 {[%emt 0:00:04]} 65. Qf4+ {[%emt 0:00:09]} Kh1 {[%emt 0:00:13]} 66. Qg4 {[%emt 0:00:24]} Kh2 {[%emt 0:00:02]} 67. Qe2 {[%emt 0:00:15]} Kh1 {[%emt 0:00:06]} 68. Qe4 {[%emt 0:00:11]} Kh2 {[%emt 0:00:03]} 69. Qf4+ {[%emt 0:00:11]} Kh1 {[%emt 0:00:03]} 70. Qe4 {[%emt 0:00:06]} Kh2 {[%emt 0:00:02]} 71. Qf4+ {[%emt 0:00:15]} 1/2-1/2